[Event "SixDays Budapest January IM-B 2025"]
[Site "Budapest"]
[Date "2025.01.27"]
[Round "3.2"]
[White "Senthil Maran K"]
[Black "Krizsany, Laszlo"]
[Result "1/2-1/2"]
[Annotator "TA"]
[ECO "A04"]
[WhiteElo "2398"]
[BlackElo "2303"]
[PlyCount "29"]
[EventDate "2025.01.24"]
[EventType "tourn"]
[EventCountry "HUN"]
[SourceTitle "playchess.com"]
[Source "ChessBase"]
[SourceQuality "1"]
[TimeControl "5400+30"]

{[%evp 15,29,54,49,20,26,13,76,0,0,0,20,0,0,-21,0,-34]} 1. Nf3 {[%emt 0:04:23]} f5 {[%emt 0:00:32]} 2. g3 {[%emt 0:00:10]} Nf6 {[%emt 0:00:16]} 3. Bg2 {[%emt 0:00:12]} d6 {[%emt 0:00:43]} 4. d4 {[%emt 0:00:16]} g6 {[%emt 0:00:24]} 5. O-O {[%emt 0:00:12]} Bg7 {[%emt 0:00:12]} 6. c4 {[%emt 0:00:11]} O-O {[%emt 0:00:12]} 7. Nc3 {[%emt 0:00:08]} Qe8 {[%emt 0:00:15] 7...e6 is a critical line.} 8. Re1 {[%emt 0:00:15]} Qf7 {[%emt 0:00:14]} 9. e4 {[%emt 0:00:11] A87: Dutch Defence: Leningrad System: 5 Nf3.} fxe4 {[%emt 0:00:41]} 10. Nxe4 {[%emt 0:00:09]} Qxc4 {[%emt 0:00:27]} (10... Nc6 $1 $11 {keeps the balance.}) 11. Neg5 {[%emt 0:01:59]} ({White should try} 11. Nxf6+ $16 exf6 12. Re7) 11... Nc6 $11 {[%emt 0:03:44] The position is equal.} 12. Bf1 {[%emt 0:03:15]} Qb4 $146 {[%emt 0:07:02]} (12... Qd5 13. b3 Qa5 14. Bd2 Qb6 15. Bf4 e5 16. dxe5 Ng4 17. exd6 Qxf2+ 18. Kh1 Nd4 {0-1 Piorun,K (2532)-Pruijssers,R (2511) Bundesliga 1415 2014 (15.2)}) 13. Bd2 {[%emt 0:08:09][%mdl 1024] White has compensation.} Qb6 {[%emt 0:04:02][%cal Oc8g4]} 14. a4 {[%emt 0:07:17] [#] and a5 would now be decisive} a5 $1 {[%emt 0:02:39][%cal Oc8g4]} 15. d5 {[%emt 0:10:34] Weighted Error Value: White=0.30/Black=0.15 (very precise)   Mistake:       	White=1     	Black=1      Inaccurate:     	White=1     	---        OK:         	White=1     	Black=2      Best:        	---       	Black=1      Strong:       	---       	Black=1} 1/2-1/2

[Event "SixDays Budapest January IM-B 2025"]
[Site "Budapest"]
[Date "2025.01.27"]
[Round "3.3"]
[White "Horvath, David"]
[Black "Ongut, Tamas Gunes"]
[Result "1/2-1/2"]
[Annotator "TA"]
[ECO "E71"]
[WhiteElo "2299"]
[BlackElo "2262"]
[PlyCount "29"]
[EventDate "2025.01.24"]
[EventType "tourn"]
[EventCountry "HUN"]
[SourceTitle "playchess.com"]
[Source "ChessBase"]
[SourceQuality "1"]
[TimeControl "5400+30"]

{[%evp 9,29,40,54,52,51,52,52,47,73,68,79,50,84,89,87,73,90,90,98,86,100,25]} 1. d4 {[%emt 0:00:03]} Nf6 {[%emt 0:07:38]} 2. c4 {[%emt 0:00:06]} g6 {[%emt 0:00:06]} 3. Nc3 {[%emt 0:00:07]} Bg7 {[%emt 0:00:07]} 4. e4 {[%emt 0:00:09]} d6 {[%emt 0:00:07]} 5. h3 {[%emt 0:01:32]} e5 {[%emt 0:00:18]} 6. dxe5 {[%emt 0:20:02] E71: King's Indian: 4 e4 d6 5 h3.} dxe5 {[%emt 0:00:32]} 7. Qxd8+ {[%emt 0:00:04]} Kxd8 {[%emt 0:00:08]} 8. Nf3 {[%emt 0:03:01] White is slightly better.} Re8 {[%emt 0:08:21]} 9. Be3 {[%emt 0:03:39]} Nbd7 {[%emt 0:05:03]} 10. O-O-O {[%emt 0:15:43]} h6 {[%emt 0:05:00]} 11. c5 {[%emt 0:08:36] White is better.} c6 {[%emt 0:00:45]} 12. Nd2 {[%emt 0:08:34]} Ke7 $146 {[%emt 0:00:12]} (12... Rf8 13. Nc4 Ne8 14. Be2 Ke7 15. b4 f5 16. f3 Nc7 17. exf5 gxf5 18. g4 Ne6 {½-½ Teplyi,I (2403)-Gergacz,A (2360) Kolding-ch DanPump GM/IM 2018 (2)}) 13. Nc4 {[%emt 0:02:57]} Rd8 {[%emt 0:00:36]} 14. Be2 {[%emt 0:12:58] White has more active pieces.} Ne8 {[%emt 0:01:50]} 15. Nd6 {[%emt 0:05:15] Weighted Error Value: White=0.06 (flawless) /Black=0.11 (very precise)   Mistake:       	White=1     	---        Inaccurate:     	White=1     	Black=2      OK:         	White=5     	Black=3} (15. b4 $16) 1/2-1/2

[Event "SixDays Budapest January IM-B 2025"]
[Site "Budapest"]
[Date "2025.01.27"]
[Round "3.4"]
[White "Papp, Bence"]
[Black "Varga, Csaba Zoltan"]
[Result "1/2-1/2"]
[Annotator "TA"]
[ECO "B51"]
[WhiteElo "2272"]
[BlackElo "2198"]
[PlyCount "37"]
[EventDate "2025.01.24"]
[EventType "tourn"]
[EventCountry "HUN"]
[SourceTitle "playchess.com"]
[Source "ChessBase"]
[SourceQuality "1"]
[TimeControl "5400+30"]

{[%evp 9,37,14,34,52,43,47,65,41,70,28,47,41,50,31,41,31,31,27,32,0,15,0,0,0,0,0,0,0,20,0]} 1. e4 {[%emt 0:00:06]} c5 {[%emt 0:00:05]} 2. Nf3 {[%emt 0:00:06]} d6 {[%emt 0:00:04]} 3. Bb5+ {[%emt 0:00:18]} Nd7 {[%emt 0:00:06][%cal Bb8d7,Bd7e5,Be5f3][%mdl 32]} 4. O-O {[%emt 0:00:21]} a6 {[%emt 0:00:06]} 5. Bd3 {[%emt 0:00:06]} Qc7 {[%emt 0:00:52]} 6. c3 {[%emt 0:00:41] B51: Sicilian: Moscow Variation (3 Bb5+) without 3...Bd7.} e6 {[%emt 0:02:21]} 7. Bc2 {[%emt 0:00:21]} Ne5 $146 {[%emt 0:00:08]} (7... c4 8. b3 b5 9. a4 Bb7 10. axb5 axb5 11. Rxa8+ Bxa8 12. Qe2 {½-½ Zhigalko,S (2664)-Smirnov,P (2627) Baku op 2013 (8)}) 8. a4 {[%emt 0:04:31] White is slightly better.} Nf6 {[%emt 0:04:13]} 9. d3 {[%emt 0:08:46]} Nxf3+ {[%emt 0:01:20]} 10. Qxf3 {[%emt 0:00:09]} Bd7 {[%emt 0:01:02]} 11. Nd2 {[%emt 0:02:05]} Be7 {[%emt 0:01:18]} 12. Nc4 {[%emt 0:03:21]} O-O {[%emt 0:02:46]} 13. a5 {[%emt 0:04:03]} Bb5 {[%emt 0:00:24]} 14. Ne3 {[%emt 0:23:10]} Rad8 {[%emt 0:03:10] The position is equal.} 15. Qg3 {[%emt 0:01:21]} Nh5 {[%emt 0:05:00]} 16. Qf3 {[%emt 0:00:17]} Nf6 {[%emt 0:00:34]} 17. Qg3 {[%emt 0:10:24]} Nh5 {[%emt 0:00:33]} 18. Qf3 {[%emt 0:00:20]} Nf6 {[%emt 0:00:06]} 19. Qg3 {[%emt 0:00:26] Weighted Error Value: White=0.11 (very precise) /Black=0.06 (flawless)   Inaccurate:     	White=1     	Black=1      OK:         	White=4     	Black=9} 1/2-1/2

[Event "SixDays Budapest January IM-B 2025"]
[Site "Budapest"]
[Date "2025.01.27"]
[Round "3.5"]
[White "Tancsa, Tamas"]
[Black "Vandan Alankar Sawai"]
[Result "1/2-1/2"]
[Annotator "TA"]
[ECO "C11"]
[WhiteElo "2192"]
[BlackElo "2177"]
[PlyCount "58"]
[EventDate "2025.01.24"]
[EventType "tourn"]
[EventCountry "HUN"]
[SourceTitle "playchess.com"]
[Source "ChessBase"]
[SourceQuality "1"]
[TimeControl "5400+30"]

{[%evp 16,58,8,4,25,21,43,29,45,35,69,45,25,-53,125,69,0,-22,-31,-45,-38,-172,-152,-253,0,0,0,0,0,0,0,0,0,0,53,0,0,-168,0,0,0,0,0,-525,-114]} 1. e4 {[%emt 0:00:05][%cal Be2e4,Be4e5][%mdl 32]} e6 {[%emt 0:00:33]} 2. d4 {[%emt 0:00:05]} d5 {[%emt 0:00:16]} 3. Nc3 {[%emt 0:00:05]} Nf6 {[%emt 0:00:09]} 4. e5 {[%emt 0:00:04]} Nfd7 {[%emt 0:00:49]} 5. f4 {[%emt 0:00:07]} c5 {[%emt 0:00:12]} 6. Nf3 {[%emt 0:00:04]} Nc6 {[%emt 0:00:06]} 7. Be3 {[%emt 0:00:07]} Be7 {[%emt 0:00:08]} 8. Qd2 {[%emt 0:00:06]} O-O {[%emt 0:00:22]} 9. dxc5 {[%emt 0:00:23]} Qa5 $1 {[%emt 0:00:15][%mdl 4] is more profitable than 9...Nxc5 at the moment. C11: French: Classical System: 4 e5 and 4 Bg5 dxe4.} 10. O-O-O {[%emt 0:02:15]} b6 {[%emt 0:00:39][%cal Bb7b6,Bb6c5,Bc5b4][%mdl 32] Black sacrificed a pawn} 11. Bb5 {[%emt 0:04:02]} Nb4 {[%emt 0:00:14] White has an edge.} 12. a3 {[%emt 0:02:36]} bxc5 {[%emt 0:00:11][%cal Ob4a2] [#]} 13. Bxd7 {[%emt 0:02:23]} (13. axb4 cxb4 14. Na4 (14. Bxd7 $2 bxc3 15. Qxc3 Bb4 $19) 14... Qxb5 $17) (13. Kb1 {simplifies} Rb8 14. axb4 cxb4 15. Nxd5 exd5 16. Bxd7 Bxd7 17. Qxd5 Qxd5 18. Rxd5 Bf5 19. Bxa7 Rb7 20. Bc5) 13... Bxd7 {[%emt 0:00:08]} 14. axb4 {[%emt 0:00:11]} (14. f5 $1 $11) 14... Qa1+ {[%emt 0:00:37] Black attacks} (14... cxb4 $15 15. Nb1 Rfc8) 15. Nb1 $14 {[%emt 0:00:24]} cxb4 {[%emt 0:00:06][%cal Ob4b3]} 16. Nd4 {[%emt 0:02:20] Hoping for Nb3.} (16. f5 $5 b3 17. c3 $14 (17. cxb3 $2 Rfc8+ $19)) 16... Rfc8 {[%emt 0:00:46]} 17. Qd3 {[%emt 0:06:17]} a5 {[%emt 0:02:32][%cal Ba7a5,Ba5a4,Ba4a3][%mdl 32]} 18. f5 {[%emt 0:25:20]} (18. Kd2 $15) 18... a4 $146 {[%emt 0:02:05]} (18... exf5 19. e6 fxe6 20. Nxf5 exf5 21. Qxd5+ Kh8 22. Qxd7 Bf6 23. Rd4 b3 24. c3 a4 25. Qf7 a3 26. Qxb3 a2 27. Qc2 Rxc3 {0-1 Santos Ruiz,M (2560)-Edouard,R (2658) EU-ch 20th Skopje 2019 (8)}) 19. f6 {[%emt 0:25:35]} (19. Kd2 $17) 19... gxf6 $2 {[%emt 0:03:01]} (19... Bf8 $19 {Hoping for ...gxf6.} 20. Rhf1 a3 21. bxa3 bxa3) 20. Bh6 $1 $11 {[%emt 0:01:43]} Kh8 {[%emt 0:06:42]} 21. exf6 $1 {[%emt 0:00:05]} Bd6 $1 {[%emt 0:05:50]} 22. Bg7+ {[%emt 0:02:06]} Kg8 {[%emt 0:00:04]} 23. Qe3 {[%emt 0:01:53] Prevents Bf4} a3 $36 {[%emt 0:00:11][%mdl 2048] Black has good play.} 24. Bh6 {[%emt 0:01:45]} Qxb2+ {[%emt 0:01:37]} (24... axb2+ $2 25. Kd2 Kh8 26. Qg5 $18) 25. Kd2 {[%emt 0:00:09]} Kh8 {[%emt 0:00:11][%cal Ob4b3]} 26. Bg7+ $1 {[%emt 0:00:35]} Kg8 {[%emt 0:00:03][%mdl 1024] Black has strong compensation.} 27. Bh6 $1 {[%emt 0:01:34] White wants to mate with Qg5+.} Kh8 {[%emt 0:00:03][%cal Ob4b3]} 28. Bg7+ $1 Kg8 29. Ke1 $2 {[%mdl 8192] [#]} (29. Bh6 $1 $11 {and White is okay.} Kh8) 29... Rxc2 $2 {Weighted Error Value: White=0.35/Black=0.57  Loses game:     	White=1     	---        Missed win:     	---       	Black=3      Mistake:       	White=3     	Black=1      Inaccurate:     	White=2     	Black=1      OK:         	White=3     	Black=5      Best:        	White=2     	Black=4      Strong:       	White=5     	Black=1} ({And not} 29... a2 30. Bh6 Kh8 31. Qg5) (29... Ba4 $1 $19 {[%cal Ra4c2] has better winning chances.} 30. Qg5 Bxc2 31. Bh8+ Bg6) 1/2-1/2

[Event "SixDays Budapest January IM-B 2025"]
[Site "Budapest"]
[Date "2025.01.28"]
[Round "4.1"]
[White "Subramanian, Anusha"]
[Black "Vandan Alankar Sawai"]
[Result "1/2-1/2"]
[Annotator "TA"]
[ECO "C77"]
[WhiteElo "2044"]
[BlackElo "2177"]
[PlyCount "205"]
[EventDate "2025.01.24"]
[EventType "tourn"]
[EventCountry "HUN"]
[SourceTitle "playchess.com"]
[Source "ChessBase"]
[SourceQuality "1"]
[TimeControl "5400+30"]

{[%evp 9,205,-5,33,-11,10,4,3,9,4,12,8,10,12,0,12,1,7,-40,-29,-43,-34,-150,-57,-54,-60,-61,-52,-92,-81,-83,-73,-59,-81,-70,-86,-111,0,-163,-156,-155,-166,-161,-42,-52,0,0,163,173,179,0,0,0,0,-107,264,269,263,275,325,328,316,322,333,343,325,312,294,238,274,249,304,309,311,297,339,280,287,288,297,297,289,289,302,0,376,366,371,316,388,381,794,759,800,731,1608,1072,2276,2045,1361,2985,2483,1006,7604,9510,29940,5169,29946,29951,12566,9510,5595,5097,4802,4667,4627,1596,1544,1489,1447,1458,1272,1250,1195,1167,824,191,191,139,139,139,139,134,134,134,134,119,119,119,135,0,0,0,0,0,0,0,0,0,5591,0,0,0,0,0,0,0,0,0,0,0,0,0,0,0,29973,0,0,0,0,0,0,0,0,0,0,0,0,0,0,0,0,0,0,0,0,0,0,0,0,0,0,0,0,0,0,0,0,0]} 1. e4 {[%emt 0:00:03]} e5 {[%emt 0:00:42]} 2. Nf3 {[%emt 0:00:06]} Nc6 {[%emt 0:00:16]} 3. Bb5 {[%emt 0:00:05]} a6 {[%emt 0:01:28]} 4. Ba4 {[%emt 0:00:05]} Nf6 {[%emt 0:00:06][%cal Bg8f6,Bf6d7,Bd7c5][%mdl 32]} 5. Qe2 {[%emt 0:00:03]} d6 {[%emt 0:06:52]} (5... b5 $5 6. Bb3 $8 Bc5 $11) 6. h3 {[%emt 0:00:34] C77: Ruy Lopez: 3...a6 4 Ba4 Nf6, unusual lines.} g6 {[%emt 0:00:24]} (6... b5 $5 7. Bb3 $8 Na5 $11) 7. c3 {[%emt 0:02:23]} Bg7 {[%emt 0:00:30]} 8. d3 {[%emt 0:01:54]} O-O {[%emt 0:00:28]} 9. O-O {[%emt 0:00:14]} Nd7 {[%emt 0:00:47]} 10. Re1 $146 {[%emt 0:03:13]} (10. Nbd2 Nc5 11. Bc2 Ne6 12. Nc4 f5 13. exf5 gxf5 14. a4 d5 15. Ncxe5 Nxe5 16. Nxe5 {½-½ Sergienko,S (2335)-Plotnikov,P (2297) Titled Tuesday intern op 10th Nov blitz 2020 (11)}) 10... Nc5 {[%emt 0:00:06]} 11. Bc2 {[%emt 0:02:23] The position is symmetric and equal} Ne6 {[%emt 0:00:54]} 12. Bb3 {[%emt 0:02:54]} Kh8 {[%emt 0:00:32]} 13. Bxe6 {[%emt 0:05:21]} (13. Bd5 $11 {deserves consideration.}) 13... Bxe6 $15 {[%emt 0:00:17]} 14. Ng5 {[%emt 0:00:23]} Bd7 {[%emt 0:00:22]} 15. f4 {[%emt 0:00:54]} (15. a4 $15) 15... h6 {[%emt 0:07:47]} (15... Bh6 $17 16. Bd2 exf4) 16. Nf3 {[%emt 0:00:29]} exf4 {[%emt 0:01:13]} 17. Bxf4 {[%emt 0:00:56]} f5 {[%emt 0:00:25] ...fxe4 is the strong threat.} 18. e5 {[%emt 0:21:16]} Re8 $1 $36 {[%emt 0:03:52][%mdl 2048] Black is really pushing.} 19. d4 {[%emt 0:00:48]} g5 {[%emt 0:01:04]} 20. Nxg5 {[%emt 0:05:53]} hxg5 {[%emt 0:00:07]} 21. Qh5+ {[%emt 0:00:03]} Kg8 {[%emt 0:00:08]} 22. Bxg5 {[%emt 0:00:13]} Qc8 {[%emt 0:00:07]} ({Black should try} 22... Qb8 $1 $17 {[%cal Rd6e5]} 23. Nd2 (23. Bh6 Re6 $17) 23... dxe5 24. dxe5 Rxe5 (24... Nxe5 25. Nf3 $19)) 23. Bh6 $2 {[%emt 0:07:17]} (23. Nd2 $1 $11 {and White stays safe.}) 23... Re6 $19 {[%emt 0:00:24]} (23... dxe5 24. Bxg7 Kxg7 25. d5 $11) 24. Bxg7 {[%emt 0:02:02]} Kxg7 {[%emt 0:00:06]} 25. Nd2 {[%emt 0:12:51]} dxe5 {[%emt 0:04:36]} (25... Rh6 $19 26. Qe2 (26. Qg5+ $2 Rg6 $19) 26... Qg8 27. exd6 cxd6) 26. d5 $1 $15 {[%emt 0:02:16]} (26. Qxf5 Rg6 (26... exd4 27. Rxe6 Bxe6 28. Qg5+ Kh8 29. Qh6+ Kg8 30. Rf1 $18) 27. Qe4 (27. Qh5 $2 Bxh3 28. Rxe5 Rxg2+ 29. Kh1 Qg4 $19) 27... Bxh3 $19) 26... Rh6 {[%emt 0:00:06]} (26... Qe8 $1 $15 27. Qe2 Re7 (27... Rg6 28. dxc6 Bxc6 29. Nf3 $11) 28. dxc6 Bxc6) 27. Qe2 $11 {[%emt 0:00:49]} Nd8 {[%emt 0:00:45]} (27... e4 $1 $11 28. dxc6 Bxc6) 28. Qxe5+ $18 {[%emt 0:00:47]} Kg8 {[%emt 0:00:24]} 29. Qg3+ $2 {[%emt 0:06:04]} (29. Re3 $1 $18 {[%cal Re3g3] White threatens Rg3+ and mate.} Rg6 30. Rg3 Rxg3 31. Qxg3+ Kf8 32. Nf3) 29... Kf8 $1 $11 {[%emt 0:00:48]} 30. Nf3 {[%emt 0:02:04]} Nf7 {[%emt 0:00:21]} 31. Ng5 {[%emt 0:01:48]} (31. Nh4 $1 $11) 31... Qd8 $2 {[%emt 0:03:31][%mdl 8192] [#]} (31... Nxg5 $17 {and life is bright.} 32. Qxg5 Rh7) 32. Ne6+ $18 {[%emt 0:01:51]} Bxe6 {[%emt 0:01:55]} 33. dxe6 {[%emt 0:00:08]} Qe7 {[%emt 0:06:13]} 34. exf7 {[%emt 0:00:24]} Qxf7 {[%emt 0:00:04]} 35. Qf4 {[%emt 0:00:28]} Rf6 {[%emt 0:00:54]} 36. Qb4+ {[%emt 0:01:17]} Kg8 {[%emt 0:00:11]} 37. Qxb7 {[%emt 0:00:55]} Rf8 {[%emt 0:00:16]} 38. Qb3 {[%emt 0:03:58]} f4 {[%emt 0:00:08]} 39. Rf1 {[%emt 0:01:38]} c5 {[%emt 0:02:52]} 40. Qxf7+ {[%emt 0:01:03]} R8xf7 {[%emt 0:00:02][%mdl 4096] Endgame KRR-KRR. White is two pawns up.} 41. Rf2 {[%emt 0:00:20]} f3 {[%emt 0:00:12]} 42. Raf1 {[%emt 0:00:39][%cal Rf2f3]} fxg2 {[%emt 0:00:25]} 43. Rxg2+ {[%emt 0:00:14]} (43. Rxf6 gxf1=Q+ 44. Rxf1 Rd7 $18) 43... Kh7 {[%emt 0:00:02]} 44. Rxf6 {[%emt 0:00:08]} Rxf6 {[%emt 0:00:04] KR-KR. White is two pawns up.} 45. Rg5 {[%emt 0:00:31]} Rd6 {[%emt 0:00:13]} 46. Rg2 $2 {[%emt 0:00:58]} (46. Rxc5 Rd1+ 47. Kf2 Rd2+ 48. Kf3 Rxb2 $16) (46. Rh5+ $18 Kg8 47. Rg5+ (47. Rxc5 Rd1+ 48. Kf2 Rd2+ 49. Kg3 Rxb2 $18) 47... Kh8 48. h4 (48. Rxc5 Rd1+ 49. Kh2 Rd2+ 50. Kg3 Rxb2 $18)) 46... c4 $2 {[%emt 0:00:10][%mdl 8192]} (46... Rf6 $1 $11 47. Rg4 Rd6 48. Rh4+ Kg7 49. Rg4+ Kf7) 47. Kf2 {[%emt 0:03:09]} Rd3 {[%emt 0:00:06]} 48. Ke2 {[%emt 0:00:30]} (48. h4 Rh3 49. Ke2 Kh6 $16) 48... Rxh3 {[%emt 0:00:06]} 49. Kd2 {[%emt 0:00:23]} a5 $2 {[%emt 0:00:43]} (49... Rh5 50. Ke3 Rh4) 50. b3 {[%emt 0:00:57][%cal Bb2b3,Bb3b4][%mdl 32]} Rh4 {[%emt 0:01:09]} 51. Kc2 {[%emt 0:01:28]} Kh6 {[%emt 0:00:06]} 52. Kb2 {[%emt 0:00:06]} Re4 {[%emt 0:00:27]} 53. b4 {[%emt 0:01:55]} Re5 {[%emt 0:00:43]} 54. Ka3 {[%emt 0:00:52]} Re3 {[%emt 0:01:56]} 55. Rc2 {[%emt 0:00:26]} (55. bxa5 Rxc3+ 56. Kb4 Re3 $18) (55. b5 $142 Rxc3+ 56. Ka4) 55... axb4+ {[%emt 0:00:24]} 56. Kxb4 {[%emt 0:00:05][%cal Oa2a4]} Kg6 {[%emt 0:00:02]} 57. Rf2 {[%emt 0:00:27]} (57. a4 $142 Re8 58. a5 (58. Kxc4 Rc8+ 59. Kd5 Rd8+ 60. Kc6 Ra8 $18) 58... Rb8+ 59. Kxc4 Rc8+ 60. Kd5 Rd8+ 61. Kc6 Ra8 62. Ra2) 57... Re8 {[%emt 0:00:11]} 58. a4 {[%emt 0:00:25]} Rb8+ {[%emt 0:00:26]} 59. Kxc4 {[%emt 0:00:21]} Ra8 {[%emt 0:00:03]} 60. Kb4 {[%emt 0:00:31]} Rb8+ {[%emt 0:00:04]} 61. Ka3 {[%emt 0:00:14]} Rc8 {[%emt 0:00:10]} 62. Kb3 {[%emt 0:01:22]} (62. Rf3 $142 Ra8 63. Rf1) 62... Rb8+ {[%emt 0:00:03]} 63. Kc2 {[%emt 0:00:19]} Ra8 {[%emt 0:00:03]} 64. Rf4 {[%emt 0:00:07]} Kg5 {[%emt 0:00:03]} 65. Rd4 {[%emt 0:00:10]} Kf5 {[%emt 0:00:04]} 66. Kb3 {[%emt 0:00:26]} Ke5 {[%emt 0:00:10]} 67. Rb4 $2 {[%emt 0:02:14]} (67. Rd3 Rb8+ 68. Ka3) 67... Kd5 {[%emt 0:00:04]} 68. Rb5+ {[%emt 0:00:07]} ({White should play} 68. Rg4 $18) 68... Kc6 $16 {[%emt 0:00:04]} 69. Kb4 {[%emt 0:00:09]} Rh8 {[%emt 0:00:21]} 70. a5 {[%emt 0:00:52]} Rh1 {[%emt 0:00:22] ( -> ...Rb1+)} 71. Rb6+ {[%emt 0:00:14]} Kc7 {[%emt 0:00:09]} 72. c4 {[%emt 0:01:24]} Rb1+ {[%emt 0:00:43]} 73. Kc5 {[%emt 0:00:08]} Ra1 {[%emt 0:00:04]} 74. Kb5 {[%emt 0:00:11]} (74. Rc6+ $16 Kb7 75. a6+ (75. Rb6+ Ka7 $11) 75... Ka8 76. Kb6 Rb1+ 77. Ka5) 74... Rb1+ $11 {[%emt 0:00:23]} 75. Ka6 {[%emt 0:00:08]} Rc1 {[%emt 0:00:03]} ({And not} 75... Rxb6+ 76. axb6+ Kd6 77. b7 Kc7 78. Ka7 (78. b8=Q+ Kxb8 79. Kb6 Kc8 80. c5 Kd7 81. c6+ Kd8 82. Kb7 Ke7) 78... Kd7 79. b8=Q (79. b8=R Kd6 80. Rb5 Ke6 81. c5 Kf5 82. c6+ Kg4 83. c7 Kf4) 79... Ke7 80. Qe5+ Kf8 81. c5) 76. Rb4 {[%emt 0:00:51]} Kc6 {[%emt 0:00:10]} 77. Ka7 {[%emt 0:00:31]} Kc7 {[%emt 0:00:02]} 78. a6 {[%emt 0:00:21] Strongly threatening Rb7+.} Rc2 $2 {[%emt 0:00:09][%mdl 8192]} (78... Re1 $11) 79. Ka8 $2 {[%emt 0:00:23]} (79. Rb7+ $18 Kc8 80. Rh7) 79... Ra2 {[%emt 0:00:26]} 80. a7 {[%emt 0:02:25]} Rc2 {[%emt 0:00:04]} 81. Rb7+ {[%emt 0:00:43]} Kc8 {[%emt 0:00:02]} 82. Rb8+ {[%emt 0:01:23]} Kc7 {[%emt 0:00:01]} 83. Rb4 {[%emt 0:00:23]} Rc3 {[%emt 0:00:13]} 84. Ra4 {[%emt 0:00:46]} Rc1 {[%emt 0:00:05]} 85. Rb4 {[%emt 0:00:12]} Rd1 {[%emt 0:01:27]} 86. Rb7+ {[%emt 0:00:40]} Kc8 $2 {[%emt 0:00:02][%mdl 8192] [#]} (86... Kc6 $11) 87. c5 $2 {[%emt 0:00:59]} (87. Rb5 $1 {mates} Kc7 88. Rc5+ Kb6 89. Rc8 Rd7 90. c5+ Ka6 91. Rc6+ Kb5 92. Rd6) 87... Rd5 {[%emt 0:00:10] The position is equal.} 88. c6 {[%emt 0:00:35]} Rc5 {[%emt 0:00:02]} 89. Rb8+ {[%emt 0:00:36]} Kc7 {[%emt 0:00:01]} 90. Rb7+ {[%emt 0:00:06]} Kc8 $1 {[%emt 0:00:11]} 91. c7 {[%emt 0:00:20]} Re5 {[%emt 0:00:18]} 92. Rb3 {[%emt 0:00:31]} Rc5 {[%emt 0:00:30]} 93. Rg3 {[%emt 0:00:24]} Kxc7 94. Rg8 {[%emt 0:00:19]} Rd5 {[%emt 0:00:13]} 95. Rf8 {[%emt 0:00:16]} Rd7 {[%emt 0:00:07]} 96. Rb8 {[%emt 0:00:29]} Kc6 {[%emt 0:01:05]} 97. Rc8+ {[%emt 0:00:17]} Kb6 {[%emt 0:00:04]} 98. Kb8 {[%emt 0:00:58]} Rb7+ {[%emt 0:00:06]} 99. Ka8 {[%emt 0:00:05]} Rc7 {[%emt 0:00:30]} 100. Rh8 {[%emt 0:00:27]} Rxa7+ {[%emt 0:00:05]} 101. Kb8 {[%emt 0:00:04]} Rb7+ {[%emt 0:00:09]} 102. Kc8 {[%emt 0:00:09]} Rc7+ {[%emt 0:00:04]} 103. Kb8 {[%emt 0:00:07] Both players deserved the win here.   Weighted Error Value: White=0.60/Black=0.97  Loses game:     	White=1     	Black=5      Missed win:     	White=4     	---        Mistake:       	White=4     	Black=5      Inaccurate:     	White=1     	---        OK:         	White=25    	Black=26     Best:        	White=7     	Black=11     Strong:       	White=1     	Black=3} 1/2-1/2